bitfinex-derivatives/quotes_ETHF0:USTF0_20250520
["timestamp","ask_amount","ask_price","bid_price","bid_amount"]
[1747735426621,0.79746296,2526.0,2525.9,4.145215]
[1747735427618,0.00593296,2526.0,2525.9,4.145215]
[1747735427823,0.00593296,2526.0,2525.9,9.145215]
[1747735428526,0.00593296,2526.0,2525.9,9.78222121]
[1747735429128,0.00593296,2526.0,2525.9,12.52222121]
[1747735429426,0.00593296,2526.0,2525.9,6.73066121]
[1747735429631,0.79746296,2526.0,2525.9,14.72166121]
[1747735429924,0.79746296,2526.0,2525.9,15.51322121]
[1747735430123,0.00593296,2526.0,2525.9,15.98102121]
[1747735430323,0.00593296,2526.0,2525.9,15.66083864]
[1747735431222,0.00593296,2526.0,2525.9,23.40083864]
[1747735433935,0.79746296,2526.0,2525.9,23.40083864]
[1747735434127,0.00593296,2526.0,2525.9,23.40083864]
[1747735435435,3.2078,2526.8,2526.0,3.95761]
[1747735435640,0.79134,2526.7,2526.6,0.79131]
[1747735435935,0.79134,2526.7,2526.6,8.78131]
[1747735436135,0.79134,2526.7,2526.6,10.760215]
[1747735436337,0.79134,2526.7,2526.6,12.067115]
[1747735437031,0.00593296,2526.9,2526.6,11.275805]
[1747735437333,2.29717246,2526.9,2526.8,0.79128]
[1747735437538,2.29717246,2526.9,2526.8,2.13378]
[1747735437725,2.29717246,2526.9,2526.8,4.11253]
[1747735438127,2.29717246,2526.9,2526.8,6.85253]
[1747735438333,0.00593296,2526.9,2526.8,6.85253]
[1747735439231,0.79718296,2526.9,2526.8,6.85253]
[1747735439433,0.79106,2527.6,2527.5,0.79104]
[1747735439633,5.1722,2527.9,2527.7,0.79098]
[1747735439843,1.4999895,2527.8,2527.7,0.791]
[1747735440235,1.31007767,2528.0,2527.9,0.79094]
[1747735440534,1.31007767,2528.0,2527.9,8.77994]
[1747735440735,0.79088,2528.1,2528.0,0.79088]
[1747735440938,2.2908695,2528.1,2528.0,0.79088]
[1747735441136,2.2908695,2528.1,2528.0,5.50868999]
[1747735441334,0.79087,2528.1,2528.0,5.50868999]
[1747735441535,1.4999895,2528.1,2528.0,5.50868999]
[1747735441735,0.79087,2528.1,2528.0,5.50868999]
[1747735442042,2.2908595,2528.1,2528.0,4.71780999]
[1747735442339,2.2908595,2528.1,2528.0,2.76871999]
[1747735442843,1.4999895,2528.1,2528.0,2.76871999]
[1747735443341,0.00593296,2528.2,2528.1,0.79088]
[1747735443741,0.79677296,2528.2,2528.1,1.97773]
[1747735444142,0.79677296,2528.2,2528.1,2.76861]
[1747735444539,0.79677296,2528.2,2528.1,1.97773]
[1747735446244,0.79677296,2528.2,2528.1,2.85347477]
[1747735446637,0.79677296,2528.2,2528.1,2.06259477]
[1747735446638,2.29676246,2528.2,2528.1,2.06259477]
[1747735447044,4.27449246,2528.2,2528.1,0.08486477]
[1747735447250,6.23679246,2528.2,2528.1,8.06986477]
[1747735447752,4.25906246,2528.2,2528.1,8.06986477]
[1747735448047,4.25906246,2528.2,2528.1,0.08486477]
[1747735448347,4.25906246,2528.2,2528.1,8.06986477]
[1747735448547,6.23679246,2528.2,2528.1,8.06986477]
[1747735448746,4.25906246,2528.2,2528.1,8.06986477]
[1747735448934,6.23679246,2528.2,2528.1,8.06986477]
[1747735449141,3.57956246,2528.2,2528.1,8.86073477]
[1747735449340,0.00593296,2528.2,2528.1,10.83846477]
[1747735449742,0.79677296,2528.2,2528.1,10.83846477]
[1747735451949,0.79677296,2528.2,2528.1,10.04759477]
[1747735452151,2.29676246,2528.2,2528.1,8.06886477]
[1747735452543,5.63539246,2528.2,2528.1,8.06886477]
[1747735452743,5.63539246,2528.2,2528.1,0.08486477]
[1747735452950,10.63539246,2528.2,2528.1,4.77e-06]
[1747735457555,5.63539246,2528.2,2528.1,4.77e-06]
[1747735462055,2.2908595,2528.1,2528.0,1.90448589]
[1747735462263,0.79097,2527.8,2527.7,0.00593296]
[1747735462558,2.2909595,2527.8,2527.7,0.00593296]
[1747735462759,4.2690045,2527.8,2527.7,0.00593296]
[1747735463354,4.9280045,2527.8,2527.7,0.00593296]
[1747735465363,4.9280045,2527.8,2527.7,0.32238286]
[1747735465563,4.9280045,2527.8,2527.7,1.68008286]
[1747735466468,4.9280045,2527.8,2527.7,2.33278286]
[1747735467362,4.9280045,2527.8,2527.7,2.57213352]
[1747735470165,2.9499595,2527.8,2527.7,2.57213352]
[1747735470867,4.9280045,2527.8,2527.7,2.57213352]
[1747735471270,4.9280045,2527.8,2527.7,0.56173352]
[1747735472962,4.9280045,2527.8,2527.7,2.55393352]
[1747735473168,4.9280045,2527.8,2527.7,2.31458286]
[1747735473867,4.9280045,2527.8,2527.7,0.32238286]
[1747735474066,1.4999895,2527.7,2527.5,0.08018256]
[1747735474265,0.79125,2526.9,2526.8,0.79978776]
[1747735474475,5.4990395,2526.9,2526.8,0.79978776]
[1747735474664,7.47778951,2526.9,2526.8,0.79978776]
[1747735474866,0.79125,2526.9,2526.8,2.77853776]
[1747735475070,0.79125,2526.9,2526.8,4.76503776]
[1747735475267,0.79125,2526.9,2526.8,5.52628776]
[1747735476374,0.79125,2526.9,2526.8,5.81760297]
[1747735476874,0.79125,2526.9,2526.8,5.01781521]
[1747735477770,4.26998951,2526.9,2526.8,3.03131521]
[1747735478077,5.64508951,2526.9,2526.8,3.03244267]
[1747735479677,5.64508951,2526.9,2526.8,3.03228032]
[1747735481371,0.79125,2526.9,2526.8,12.98398505]
[1747735481567,0.79125,2526.9,2526.8,13.64998505]
[1747735481975,0.79125,2526.9,2526.8,14.44126505]
[1747735483176,0.79125,2526.9,2526.8,14.44128745]
[1747735483778,0.79124,2527.0,2526.9,0.79122]
[1747735483977,0.79124,2527.0,2526.9,4.33394745]
[1747735484178,0.79124,2527.0,2526.9,7.07394745]
[1747735484784,0.79124,2527.0,2526.9,7.07392349]
[1747735486077,0.79121,2527.1,2527.0,0.79119]
[1747735486283,2.2911995,2527.1,2527.0,2.12719]
[1747735486582,0.79121,2527.1,2527.0,4.39799535]
[1747735486780,0.79113,2527.4,2527.3,0.79109]
[1747735486972,2.769485,2527.4,2527.3,1.08330535]
[1747735487174,4.2694745,2527.4,2527.3,3.82330535]
[1747735487375,4.2694745,2527.4,2527.3,3.03221535]
[1747735487677,2.2911195,2527.4,2527.3,3.03221535]
[1747735487882,4.2694745,2527.4,2527.3,5.02941535]
[1747735488177,4.2694745,2527.4,2527.3,5.02944103]
[1747735488575,7.4772745,2527.4,2527.3,3.03224103]
[1747735488776,8.7787745,2527.4,2527.3,3.03224103]
[1747735489885,8.7787745,2527.4,2527.3,3.11678694]
[1747735491678,8.7787745,2527.4,2527.3,3.11683132]
[1747735492487,8.7787745,2527.4,2527.3,3.11685877]
[1747735493283,8.7787745,2527.4,2527.3,3.11689861]
[1747735496686,8.7787745,2527.4,2527.3,3.11705404]
[1747735497884,5.5709745,2527.4,2527.3,3.11705404]
[1747735499386,5.5709745,2527.4,2527.3,3.11727462]
[1747735500182,5.5709745,2527.4,2527.3,3.1173549]
[1747735500584,5.5709745,2527.4,2527.3,3.43387704]
[1747735501679,2.769485,2527.4,2527.3,3.43387704]
[1747735501874,0.79113,2527.4,2527.3,3.43387704]
[1747735502082,2.769485,2527.4,2527.3,4.79627704]
[1747735503686,3.99889,2527.5,2527.4,0.79109]
[1747735503886,3.99889,2527.5,2527.4,10.39230724]
[1747735504090,3.99889,2527.5,2527.4,15.11058724]
[1747735504488,3.99889,2527.5,2527.4,15.79728724]
[1747735504981,3.99889,2527.5,2527.4,13.02791724]
[1747735505189,7.47715951,2527.5,2527.4,5.04691724]
[1747735505384,7.47715951,2527.5,2527.4,5.04686529]
[1747735505585,8.14265951,2527.5,2527.4,3.03276529]
[1747735505785,8.14265951,2527.5,2527.4,3.34928743]
[1747735506089,3.99889,2527.5,2527.4,6.11865743]
[1747735506282,3.99889,2527.5,2527.4,7.47285743]
[1747735506688,3.99889,2527.5,2527.4,6.68176743]
[1747735507089,3.99889,2527.5,2527.4,6.6817341]
[1747735508586,3.99889,2527.5,2527.4,4.7034541]
[1747735508794,7.47715951,2527.5,2527.4,4.70345659]
[1747735510486,7.47715951,2527.5,2527.4,4.70353176]
[1747735512086,7.47715951,2527.5,2527.4,4.70358377]
[1747735512293,3.99889,2527.5,2527.4,7.47295377]
[1747735512798,0.79109,2527.5,2527.4,7.47295377]
[1747735513291,0.79109,2527.5,2527.4,6.68186377]
[1747735513483,0.79109,2527.5,2527.4,4.70358377]
[1747735513687,4.26935951,2527.5,2527.4,3.34938377]
[1747735513888,4.26935951,2527.5,2527.4,4.66008377]
[1747735515492,4.26935951,2527.5,2527.4,4.6600589]
[1747735516993,7.47715951,2527.5,2527.4,3.3493589]
[1747735517199,7.47715951,2527.5,2527.4,3.34940737]
[1747735517994,18.16708001,2527.5,2527.1,0.25392349]
[1747735518192,0.79131,2526.7,2526.6,2.66932986]
[1747735518388,2.2912995,2526.7,2526.6,2.66932986]
[1747735518594,0.79131,2526.7,2526.6,4.64823486]
[1747735518992,2.05271,2526.7,2526.6,4.64823486]
[1747735519294,2.05271,2526.7,2526.6,4.73309963]
[1747735519899,2.05271,2526.7,2526.6,4.09290273]
[1747735520397,2.05271,2526.7,2526.6,3.45370273]
[1747735520800,0.79131,2526.7,2526.6,3.45370273]
[1747735521399,0.79131,2526.7,2526.6,4.24504273]
[1747735521590,0.00593296,2526.9,2526.6,3.45370273]
[1747735521793,0.79720296,2526.9,2526.8,0.79128]
[1747735521993,0.79720296,2526.9,2526.8,2.14248]
[1747735522302,0.79720296,2526.9,2526.8,6.06995]
[1747735523906,0.79720296,2526.9,2526.8,6.86123]
[1747735524700,0.79720296,2526.9,2526.8,6.06995]
[1747735524995,7.48374247,2526.9,2526.8,2.74]
[1747735525696,8.12654247,2526.9,2526.8,2.74]
[1747735530198,8.12654247,2526.9,2526.8,1.94384]
[1747735532505,8.12654247,2526.9,2526.8,1.11648]
[1747735534203,0.7915,2526.1,2525.8,3.2078]
[1747735534399,1.4999895,2526.1,2525.9,1.9498]
[1747735534603,2.2915195,2526.0,2525.9,1.9498]
[1747735535105,0.79153,2526.0,2525.9,6.669255]
[1747735535301,0.79153,2526.0,2525.9,4.6898]
[1747735535501,2.77098501,2526.0,2525.9,2.74]
[1747735535802,2.77098501,2526.0,2525.9,3.18039172]
[1747735536002,4.14078501,2526.0,2525.9,3.18039172]
[1747735537499,0.79153,2526.0,2525.9,4.84316814]
[1747735537898,2.77098501,2526.0,2525.9,4.84316814]
[1747735538106,5.56117451,2526.0,2525.9,2.86371314]
[1747735539306,4.06118501,2526.0,2525.9,2.86371314]
[1747735539608,5.56117451,2526.0,2525.9,2.86371314]
[1747735540798,0.79153,2526.0,2525.9,4.84316814]
[1747735541205,3.2078,2526.4,2525.9,4.84316814]
[1747735541400,0.7915,2526.1,2526.0,1.42502]
[1747735541597,0.7915,2526.1,2526.0,2.03241314]
[1747735541805,4.2708645,2526.1,2526.0,1.39891314]
[1747735542009,7.4786645,2526.1,2526.0,1.39891314]
[1747735542204,8.7433645,2526.1,2526.0,4.13891314]
[1747735542606,7.4786645,2526.1,2526.0,4.13891314]
[1747735543108,8.8154645,2526.1,2526.0,4.13891314]
[1747735543305,8.8154645,2526.1,2526.0,2.86371314]
[1747735547714,8.8154645,2526.1,2526.0,2.86370975]
[1747735549714,8.8154645,2526.1,2526.0,2.94857452]
[1747735556112,8.8154645,2526.1,2526.0,2.94858741]
[1747735557019,8.8154645,2526.1,2526.0,1.02294741]
[1747735557912,8.8154645,2526.1,2526.0,1.33533262]
[1747735558923,7.4786645,2526.1,2526.0,1.33533262]
[1747735559622,7.4786645,2526.1,2526.0,1.33675288]
[1747735559829,7.4786645,2526.1,2526.0,2.70125288]
[1747735560223,8.8459645,2526.1,2526.0,2.70125288]
[1747735561231,8.8459645,2526.1,2526.0,1.336939]
[1747735561729,8.8459645,2526.1,2526.0,0.537419]
[1747735561929,0.7916,2525.8,2525.7,0.00593296]
[1747735562129,3.9994,2525.8,2525.7,0.00593296]
[1747735562430,5.97901,2525.8,2525.7,1.34123296]
[1747735562723,6.64731,2525.8,2525.7,1.34123296]
[1747735563428,5.97901,2525.8,2525.7,1.34123296]
[1747735563624,7.4789995,2525.8,2525.7,0.00593296]
[1747735563822,16.1217995,2525.8,2525.7,0.00593296]
[1747735564632,2.2916195,2525.7,2525.6,2.73407]
[1747735564928,3.5817195,2525.7,2525.6,1e-08]
[1747735565124,0.79173,2525.4,2525.3,0.24015739]
[1747735565333,13.4545195,2525.4,2525.3,7.39e-06]
[1747735565527,15.43444451,2525.4,2525.3,7.39e-06]
[1747735566227,15.43444451,2525.4,2525.3,2.74000739]
[1747735567121,0.79176,2525.3,2525.1,4.0984]
[1747735567322,0.79179,2525.2,2525.1,4.0984]
[1747735567529,2.9643795,2525.2,2525.1,4.0984]
[1747735567826,4.9444595,2525.2,2525.1,4.0984]
[1747735568231,4.9444595,2525.2,2525.1,1.3584]
[1747735568731,1.46439,2525.2,2525.1,1.3584]
[1747735569530,0.79182,2525.1,2525.0,2.74]
[1747735569725,3.99962,2525.1,2525.0,2.74]
[1747735569926,5.97978001,2525.1,2525.0,4.0819]
[1747735570631,3.99962,2525.1,2525.0,4.0819]
[1747735572232,7.47976951,2525.1,2525.0,4.0819]
[1747735572534,3.99962,2525.1,2525.0,6.06206]
[1747735572827,5.97978001,2525.1,2525.0,4.0819]
[1747735573232,3.99962,2525.1,2525.0,6.06206]
[1747735573836,3.99962,2525.1,2525.0,6.36510508]
[1747735574134,3.99962,2525.1,2525.0,6.48885716]
[1747735574837,3.99962,2525.1,2525.0,6.48884975]
[1747735576431,3.99962,2525.1,2525.0,6.48885025]
[1747735578133,3.99962,2525.1,2525.0,6.48885947]
[1747735578438,0.79182,2525.1,2525.0,7.28068947]
[1747735579038,0.79182,2525.1,2525.0,6.80565091]
[1747735579933,0.79182,2525.1,2525.0,7.59750091]
[1747735580127,0.79182,2525.1,2525.0,7.68236568]
[1747735580329,0.00593296,2525.6,2525.1,1.97956]
[1747735580534,0.79176,2525.4,2525.3,3.99951]
[1747735580836,0.79176,2525.4,2525.3,6.24415739]
[1747735581039,0.79176,2525.4,2525.3,13.34783447]
[1747735581339,0.79176,2525.4,2525.3,10.29612447]
[1747735581536,0.79176,2525.4,2525.3,7.08832447]
[1747735581728,0.79176,2525.4,2525.3,12.08832447]
[1747735582133,0.79176,2525.4,2525.3,12.88008447]
[1747735582440,0.00593296,2525.6,2525.3,12.88008447]
[1747735582627,2.67109793,2526.3,2526.1,0.79151]
[1747735582628,2.3509901,2526.3,2526.1,0.79151]
[1747735582829,3.2078,2526.9,2526.1,12.37710947]
[1747735582830,3.97962211,2526.5,2526.1,12.37710947]
[1747735583032,2.10155767,2526.2,2526.1,5.61389447]
[1747735583235,3.60154717,2526.2,2526.1,2.40617967]
[1747735583636,3.60154717,2526.2,2526.1,3.73637967]
[1747735584031,2.2914695,2526.2,2526.1,3.73637967]
[1747735585040,2.2914695,2526.2,2526.1,4.05305285]
[1747735585228,4.2707645,2526.2,2526.1,2.07375785]
[1747735585631,7.4785645,2526.2,2526.1,2.07375785]
[1747735586141,7.4785645,2526.2,2526.1,1.75696641]
[1747735586642,7.4785645,2526.2,2526.1,1.7568096]
[1747735587241,7.4785645,2526.2,2526.1,0.4266096]
[1747735588339,7.4785645,2526.2,2526.1,0.4265681]
[1747735589946,7.4785645,2526.2,2526.1,0.42650613]
[1747735590134,7.4785645,2526.2,2526.1,1.74430613]
[1747735591047,8.1224645,2526.2,2526.1,1.74430613]
[1747735592134,8.1224645,2526.2,2526.1,1.44155208]
[1747735592334,8.1224645,2526.2,2526.1,1.74423094]
[1747735593752,16.0714645,2526.2,2526.1,0.42643094]
[1747735594444,16.0714645,2526.2,2526.1,0.42634241]
[1747735594946,16.0714645,2526.2,2526.1,0.42635459]
[1747735595343,21.0714645,2526.2,2526.1,0.08486936]
[1747735596850,13.1224645,2526.2,2526.1,0.08486936]
[1747735597048,21.0714645,2526.2,2526.1,0.08486936]
[1747735598149,13.1224645,2526.2,2526.1,0.08486936]
[1747735598345,21.0714645,2526.2,2526.1,0.08486477]
[1747735599147,21.0714645,2526.2,2526.1,4.77e-06]
[1747735599455,2.2915295,2526.0,2525.9,7.73e-06]
[1747735599856,4.27098451,2526.0,2525.9,7.73e-06]
[1747735600049,4.91428451,2526.0,2525.9,7.73e-06]
[1747735600248,4.91428451,2526.0,2525.9,2.74000773]
[1747735600542,6.27958451,2526.0,2525.9,2.74000773]
[1747735602259,6.27958451,2526.0,2525.9,7.73e-06]
[1747735602848,4.77959501,2526.0,2525.9,7.73e-06]
[1747735603055,6.27958451,2526.0,2525.9,7.73e-06]
[1747735607254,6.27958451,2526.0,2525.9,3.0334146]
[1747735607562,6.27958451,2526.0,2525.9,3.15721054]
[1747735608572,14.22958451,2526.0,2525.9,3.1572593]
[1747735608951,6.27958451,2526.0,2525.9,3.1572593]
[1747735609155,14.22958451,2526.0,2525.9,3.1572593]
[1747735609662,14.22958451,2526.0,2525.9,3.24212407]
[1747735610160,14.22958451,2526.0,2525.9,3.24215464]
[1747735611961,14.22958451,2526.0,2525.9,3.24219069]
[1747735612155,14.22958451,2526.0,2525.9,2.34907069]
[1747735612968,14.22658451,2526.0,2525.9,2.34907069]
[1747735614053,14.22658451,2526.0,2525.9,1.42333069]
[1747735614357,14.22658451,2526.0,2525.9,0.53005069]
[1747735614560,14.22658451,2526.0,2525.9,6.9e-07]
[1747735614763,14.22658451,2526.0,2525.9,5.46e-06]
[1747735615157,14.22658451,2526.0,2525.9,2.74000546]
[1747735615361,0.79179,2525.2,2525.1,0.6346]
[1747735615560,0.79179,2525.2,2525.1,1.2648]
[1747735615764,0.79179,2525.2,2525.1,3.24487999]
[1747735616657,0.79179,2525.2,2525.1,4.62817999]
[1747735617062,0.79179,2525.2,2525.1,4.94495767]
[1747735624067,3.2078,2525.6,2525.1,9.94495767]
[1747735624276,0.79178,2525.3,2525.2,2.11536]
[1747735624670,0.79178,2525.3,2525.2,9.09536]
[1747735624874,0.79178,2525.3,2525.2,8.3036]
[1747735625573,0.79178,2525.3,2525.2,3.3036]
[1747735625977,0.79178,2525.3,2525.2,3.62037768]
[1747735626369,0.79178,2525.3,2525.2,4.41216768]
[1747735628377,0.79178,2525.3,2525.2,3.62037768]
[1747735629477,0.79178,2525.3,2525.2,4.41216768]
[1747735629977,0.79178,2525.3,2525.2,3.62037768]
[1747735631495,5.4995695,2525.3,2525.2,3.62037768]
[1747735631788,5.4995695,2525.3,2525.2,1.64037768]
[1747735632292,6.8211695,2525.3,2525.2,1.64037768]
[1747735632892,6.8211695,2525.3,2525.2,1.3236]
[1747735633286,5.4995695,2525.3,2525.2,3.3036]
[1747735633485,5.4995695,2525.3,2525.2,3.933]
[1747735634794,5.4995695,2525.3,2525.2,3.3036]
[1747735635092,5.4995695,2525.3,2525.2,1.3236]
[1747735635292,6.1918695,2525.3,2525.2,1.3236]
[1747735635485,4.69188,2525.3,2525.2,1.3236]
[1747735635686,6.1918695,2525.3,2525.2,1.3236]
[1747735635892,6.50757426,2525.3,2525.2,1.3236]
[1747735636294,8.48757426,2525.3,2525.2,1.3236]
[1747735637391,0.79179,2525.2,2525.1,2.82486477]
[1747735637592,4.2216795,2525.2,2525.1,2.82486477]
[1747735637796,2.72169,2525.2,2525.1,4.80494476]
[1747735638294,1.46639,2525.2,2525.1,2.06494476]
[1747735638687,1.46639,2525.2,2525.1,3.42824476]
[1747735639089,1.46639,2525.2,2525.1,3.74505219]
[1747735640395,2.72299,2525.2,2525.1,3.74505219]
[1747735640597,6.2030595,2525.2,2525.1,0.4016722]
[1747735642697,6.2030595,2525.2,2525.1,0.5226448]
[1747735643695,8.91128,2525.2,2524.1,0.6401969]
[1747735643897,0.79226,2523.7,2523.6,0.63365182]
[1747735644204,5.5000495,2523.7,2523.6,1.56785139]
[1747735644402,7.48130451,2523.7,2523.6,0.22925139]
[1747735646096,4.00006,2523.7,2523.6,0.22925139]
[1747735646396,7.48130451,2523.7,2523.6,1.58115139]
[1747735646793,7.48130451,2523.7,2523.6,0.22925139]
[1747735647000,4.00006,2523.7,2523.6,2.21050639]
[1747735647301,4.00006,2523.7,2523.6,3.56240639]
[1747735647493,4.00006,2523.7,2523.6,3.333155]
[1747735648195,0.79226,2523.7,2523.6,3.333155]
[1747735648398,0.79225,2523.8,2523.6,8.333155]
[1747735648592,0.79225,2523.8,2523.7,1.3519]
[1747735649094,0.79225,2523.8,2523.7,3.33308]
[1747735649992,3.99998,2524.0,2523.8,0.79222]
[1747735650199,3.99998,2524.0,2523.8,6.20652]
[1747735650398,3.99998,2524.0,2523.8,8.18758]
[1747735650702,3.99998,2524.0,2523.9,0.7922]
[1747735650898,3.99998,2524.0,2523.9,2.1083]
[1747735651105,0.79212,2524.2,2524.1,0.79212]
[1747735651300,0.79212,2524.2,2524.1,1.980865]
[1747735651706,3.2078,2524.3,2524.1,8.296965]
[1747735652002,0.79199,2524.6,2524.2,9.2621]
[1747735652196,6.8913901,2524.8,2524.2,9.2621]
[1747735652197,3.2078,2524.8,2524.3,6.52005]
[1747735652402,3.2078,2524.8,2524.4,1.3247]
[1747735652600,0.79197,2524.7,2524.6,0.79196]
[1747735653101,0.79197,2524.7,2524.6,2.77243499]
[1747735654103,0.79197,2524.7,2524.6,1.98047499]
[1747735654409,0.79197,2524.7,2524.6,2.77245499]
[1747735654611,0.79195,2524.7,2524.6,2.77243499]
[1747735654922,0.79195,2524.7,2524.6,10.71743499]
[1747735655214,0.79195,2524.7,2524.6,9.92547499]
[1747735655409,0.79195,2524.7,2524.6,10.01033976]
[1747735656107,0.79195,2524.7,2524.6,10.31410656]
[1747735656309,0.79195,2524.7,2524.6,11.10608656]
[1747735657113,0.79195,2524.7,2524.6,10.31410656]
[1747735657613,0.79195,2524.7,2524.6,11.10613309]
[1747735658214,3.2078,2524.8,2524.7,0.79195]
[1747735658407,3.2078,2524.8,2524.7,4.42165833]
[1747735658709,0.7919,2524.9,2524.8,0.79192]
[1747735658913,0.7919,2524.9,2524.8,2.44123333]
[1747735659111,0.7919,2524.9,2524.8,7.16154832]
[1747735659313,3.21373296,2525.1,2525.0,0.79185]
[1747735659615,3.21373296,2525.1,2525.0,11.02090755]
[1747735659616,0.00593296,2525.1,2525.0,11.02090755]
[1747735659806,0.00593296,2525.1,2525.0,13.02480755]
[1747735660203,0.79775296,2525.1,2525.0,15.76480755]
[1747735660399,0.00593296,2525.1,2525.0,15.76480755]
[1747735660614,0.79775296,2525.1,2525.0,7.02795755]
[1747735660818,0.79775296,2525.1,2525.0,14.97195755]
[1747735661117,0.79775296,2525.1,2525.0,15.76378926]
[1747735661615,0.00593296,2525.1,2525.0,15.76378926]
[1747735661816,0.79775296,2525.1,2525.0,15.76378926]
[1747735662018,0.00593296,2525.1,2525.0,15.76376798]
[1747735662609,0.00593296,2525.1,2525.0,20.76376798]
[1747735662803,3.2078,2525.4,2525.3,0.79176]
[1747735663011,1.3135,2525.9,2525.7,0.79163]
[1747735663310,0.01493,2526.0,2525.9,0.79157]
[1747735663502,0.01493,2526.0,2525.9,12.62918298]
[1747735664416,0.01493,2526.0,2525.9,15.36918298]
[1747735664807,0.00593296,2526.2,2526.1,0.79151]
[1747735665108,0.00593296,2526.2,2526.1,9.03936798]
[1747735665306,0.00593296,2526.2,2526.1,17.38866298]
[1747735666520,2.10144767,2526.6,2526.1,17.38866298]
[1747735666521,1.31007767,2526.6,2526.5,0.79138]
[1747735666718,1.31007767,2526.6,2526.5,12.24503798]
[1747735666921,0.79124,2527.0,2526.9,0.79126]
[1747735667121,1.4999895,2527.0,2526.9,11.77711798]
[1747735667323,1.4999895,2527.0,2526.9,13.75578798]
[1747735667622,1.4999895,2527.0,2526.9,13.75422011]
[1747735667921,1.4999895,2527.0,2526.9,15.05252011]
[1747735668120,2.2912195,2527.0,2526.9,15.05252011]
[1747735668322,1.4999895,2527.0,2526.9,15.05252011]
[1747735668724,3.21373296,2527.2,2527.1,0.79119]
[1747735668918,3.21373296,2527.2,2527.1,1.09348011]
[1747735669118,4.71372246,2527.2,2527.1,3.07199511]
[1747735669319,4.71372246,2527.2,2527.1,3.07164983]
[1747735669520,4.71372246,2527.2,2527.1,4.36994983]
[1747735670018,3.21373296,2527.2,2527.1,4.36994983]
[1747735670219,0.00593296,2527.2,2527.1,4.36994983]
[1747735671118,0.79709296,2527.2,2527.1,4.36994983]
[1747735671324,0.00593296,2527.2,2527.1,4.36994983]
[1747735671722,0.79709296,2527.2,2527.1,12.30894983]
[1747735672723,0.79709296,2527.2,2527.1,12.30792915]
[1747735673224,0.79709296,2527.2,2527.1,12.30792925]
[1747735673428,0.79709296,2527.2,2527.1,11.51673925]
[1747735673622,0.79709296,2527.2,2527.1,11.215815]
[1747735674121,0.00593296,2527.2,2527.1,12.007005]
[1747735674523,0.79709296,2527.2,2527.1,12.007005]
[1747735674725,0.00593296,2527.2,2527.1,15.5155814]
[1747735675930,0.00593296,2527.2,2527.1,15.51561259]
[1747735677329,0.00593296,2527.2,2527.1,20.51561259]
[1747735677530,0.6583,2527.7,2527.6,0.79104]
[1747735677829,3.99876,2527.9,2527.8,0.79098]
[1747735678032,3.99876,2527.9,2527.8,2.768945]
[1747735678225,5.4987495,2527.9,2527.8,5.508945]
[1747735678424,3.6152495,2527.9,2527.8,5.508945]
[1747735678925,1.3243,2527.9,2527.8,5.508945]
[1747735679131,0.00593296,2528.1,2528.0,0.79091]
[1747735679432,0.00593296,2528.1,2528.0,9.06388363]
[1747735679625,1.3243,2528.6,2528.5,0.79076]
[1747735679832,2.8242895,2528.6,2528.5,11.04115363]
[1747735680133,3.8686,2529.0,2528.5,12.99033993]
[1747735680327,3.8449,2529.3,2529.2,0.79054]
[1747735680527,2.1370895,2529.3,2529.2,9.0636186]
[1747735680728,1.4999895,2529.3,2529.2,11.0404886]
[1747735681031,1.2687,2529.4,2529.3,0.79051]
[1747735681234,0.00593296,2529.5,2529.3,0.79051]
[1747735681235,0.00593296,2529.5,2529.4,0.79048]
[1747735681426,0.00593296,2529.5,2529.4,1.09110767]
[1747735681633,1.2765,2530.5,2529.4,9.36662267]
[1747735681825,1.31007767,2530.3,2530.2,0.79023]
[1747735682031,1.31007767,2530.3,2530.2,14.24474767]
[1747735682332,1.62863201,2530.6,2530.5,0.79013]
[1747735682535,1.95991353,2531.1,2531.0,0.78998]
[1747735682723,1.95991353,2531.1,2531.0,12.26840767]
[1747735682921,3.11774593,2531.5,2531.0,18.45389267]
[1747735683126,10.15612037,2532.9,2532.8,0.78942]
[1747735683328,9.26201873,2533.3,2533.1,0.7893]
[1747735683530,9.05109087,2533.3,2533.2,11.96709]
[1747735683829,9.05109087,2533.3,2532.4,3.2078]
[1747735683830,1.4999895,2533.2,2532.4,3.2078]
[1747735684038,1.4999895,2533.2,2531.9,39.879]
[1747735684039,3.2078,2532.5,2532.0,1.68472537]
[1747735684237,1.4999895,2532.0,2531.7,0.78974]
[1747735684429,3.2078,2532.1,2531.9,0.78969]
[1747735684733,3.2078,2532.1,2531.7,3.2078]
[1747735684922,1.4999895,2531.7,2531.6,3.21373296]
[1747735685125,1.4999895,2532.0,2531.6,5.18857296]
[1747735685326,0.78973,2531.8,2531.7,1.3873]
[1747735685527,2.2897495,2531.7,2531.6,0.00593296]
[1747735685729,3.6301495,2531.7,2531.6,0.00593296]
[1747735685932,10.289795,2531.7,2531.0,0.47858757]
[1747735686131,3.99775,2531.1,2531.0,0.47858757]
[1747735686521,0.6281,2531.6,2531.0,10.85305257]
[1747735686733,0.78995,2531.1,2531.0,0.47858757]
[1747735687138,2.76541501,2531.1,2531.0,0.47858757]
[1747735687325,3.2078,2531.5,2531.0,2.45405257]
[1747735687526,3.2078,2531.5,2530.9,3.2078]
[1747735687527,0.78998,2531.0,2530.9,3.2078]
[1747735688033,0.78998,2531.0,2530.9,5.18334499]
[1747735688233,0.78998,2531.0,2530.9,3.2078]
[1747735688433,2.765525,2531.0,2530.9,3.2078]
[1747735688831,0.79001,2530.9,2530.8,0.00593296]
[1747735689135,0.79016,2530.4,2530.3,8.398]
[1747735689327,3.2078,2530.6,2530.3,8.398]
[1747735689529,0.79004,2530.8,2530.4,4.4795]
[1747735689725,3.2078,2530.5,2530.4,8.398]
[1747735689931,3.2078,2531.0,2530.4,10.373775]
[1747735690134,3.2078,2531.0,2530.5,12.8765]
[1747735690135,3.21373296,2531.0,2530.5,12.8765]
[1747735690335,0.7901,2530.6,2530.5,12.8765]
[1747735690528,0.79008,2530.7,2530.5,12.8765]
[1747735690729,0.79008,2530.7,2530.5,14.85224]
[1747735690931,0.79593296,2531.0,2530.5,14.85224]
[1747735691133,0.00593296,2531.0,2530.5,18.38236]
[1747735691430,0.7901,2530.6,2530.5,2.74]
[1747735691628,5.26112,2530.9,2530.5,13.1127]
[1747735691831,0.79004,2530.8,2530.6,1.2976]
[1747735692030,3.2078,2532.1,2530.9,0.79001]
[1747735692230,3.2078,2532.2,2531.5,3.2078]
[1747735692537,0.78976,2531.7,2531.6,9.6946]
[1747735692727,0.78976,2531.7,2531.6,11.66959499]